bitfinex/quotes_BTCUSD_20250403
["timestamp","ask_amount","ask_price","bid_price","bid_amount"]
[1743700949260,0.244628,81757.0,81752.0,0.205952]
[1743700949551,0.012231,81759.0,81752.0,0.205952]
[1743700949745,0.244627,81757.0,81753.0,0.244638]
[1743700949974,0.244627,81757.0,81752.0,0.205952]
[1743700950300,0.244625,81758.0,81754.0,0.244633]
[1743700951130,0.34,81760.0,81755.0,0.244633]
[1743700951500,0.244627,81758.0,81753.0,0.012231]
[1743700951676,0.244629,81757.0,81753.0,0.012231]
[1743700951880,0.244629,81757.0,81753.0,0.256869]
[1743700952035,0.244627,81758.0,81754.0,0.244634]
[1743700952670,0.244627,81757.0,81753.0,0.244638]
[1743700952845,0.24463,81756.0,81753.0,0.244638]
[1743700953862,0.012231,81757.0,81752.0,0.14672]
[1743700953999,0.244636,81756.0,81753.0,0.244638]
[1743700954194,0.244636,81756.0,81752.0,0.391361]
[1743700954422,0.34,81763.0,81758.0,0.012231]
[1743700954639,0.34,81763.0,81760.0,0.244615]
[1743700954850,0.012229,81769.0,81760.0,0.01223]
[1743700955018,0.01223,81765.0,81758.0,0.012231]
[1743700955223,0.244606,81764.0,81760.0,0.244618]
[1743700955431,0.244606,81764.0,81757.0,0.256855]
[1743700955746,0.24461,81763.0,81760.0,0.244616]
[1743700956113,0.244606,81764.0,81761.0,0.244614]
[1743700956484,0.244607,81764.0,81760.0,0.256846]
[1743700957400,0.36746497,81779.0,81751.0,0.00446115]
[1743700957608,0.012229,81771.0,81764.0,0.244605]
[1743700957826,0.012228,81775.0,81765.0,0.244603]
[1743700958024,0.012228,81773.0,81765.0,0.01241519]
[1743700958224,0.25683,81766.0,81765.0,0.01241519]
[1743700958577,0.256823,81769.0,81765.0,0.244601]
[1743700958783,0.2446,81766.0,81765.0,0.01241519]
[1743700958982,0.256827,81767.0,81765.0,0.01241519]
[1743700959189,0.256827,81767.0,81763.0,0.244609]
[1743700959381,0.01223,81766.0,81761.0,0.244606]
[1743700959583,0.256826,81767.0,81764.0,0.25699828]
[1743700959789,0.25683,81766.0,81762.0,0.244612]
[1743700960013,0.244597,81767.0,81763.0,0.244609]
[1743700960216,0.244594,81768.0,81764.0,0.25699537]
[1743700960419,0.244594,81768.0,81765.0,0.244601]
[1743700960575,0.244598,81767.0,81766.0,0.01239113]
[1743700960932,0.244598,81767.0,81764.0,0.244605]
[1743700961152,0.244598,81767.0,81766.0,0.01239113]
[1743700961359,0.244598,81767.0,81764.0,0.244605]
[1743700961579,0.244598,81767.0,81766.0,0.01239113]
[1743700961783,0.244598,81767.0,81758.0,0.244621]
[1743700961784,0.012229,81767.0,81758.0,0.244621]
[1743700961954,0.01223,81763.0,81758.0,0.256853]
[1743700962163,0.244615,81761.0,81758.0,0.256853]
[1743700962543,0.244615,81761.0,81759.0,0.244621]
[1743700962743,0.43266787,81770.0,81764.0,0.01223]
[1743700962943,0.244591,81769.0,81764.0,0.01223]
[1743700963310,0.244591,81769.0,81759.0,0.244618]
[1743700963311,0.244603,81766.0,81759.0,0.244618]
[1743700963508,0.244594,81768.0,81756.0,0.19364]
[1743700963509,0.244594,81768.0,81764.0,0.244606]
[1743700963696,0.244594,81768.0,81765.0,0.2446]
[1743700964609,0.244594,81768.0,81756.0,0.438267]
[1743700964610,0.012229,81768.0,81758.0,0.012231]
[1743700964826,0.012231,81759.0,81755.0,0.14624]
[1743700965026,0.01223,81761.0,81755.0,0.14624]
[1743700965027,0.244624,81760.0,81755.0,0.14624]
[1743700965182,0.244614,81762.0,81756.0,0.244629]
[1743700965397,0.244616,81761.0,81756.0,0.244629]
[1743700965586,0.244616,81761.0,81755.0,0.14624]
[1743700965796,0.244622,81759.0,81756.0,0.24463]
[1743700966298,0.244638,81754.0,81751.0,0.00446115]
[1743700966648,0.244631,81756.0,81753.0,0.244637]
[1743700966852,0.244634,81755.0,81752.0,0.244639]
[1743700967210,0.244636,81754.0,81752.0,0.244639]
[1743700967409,0.244635,81755.0,81752.0,0.244639]
[1743700968044,0.244634,81755.0,81753.0,0.244637]
[1743700968405,0.244631,81756.0,81752.0,0.256873]
[1743700968844,0.244618,81760.0,81755.0,0.244627]
[1743700969082,0.244618,81760.0,81756.0,0.012231]
[1743700969509,0.256854,81759.0,81756.0,0.24463]
[1743700969656,0.244629,81757.0,81755.0,0.244633]
[1743700969857,0.244624,81758.0,81756.0,0.24463]
[1743700970258,0.244618,81760.0,81757.0,0.244627]
[1743700970460,0.244618,81760.0,81758.0,0.244624]
[1743700970685,0.244618,81760.0,81757.0,0.244627]
[1743700971018,0.244632,81756.0,81751.0,0.00446115]
[1743700971226,0.244633,81755.0,81752.0,0.244642]
[1743700971388,0.012231,81757.0,81753.0,0.244637]
[1743700971729,0.244624,81758.0,81755.0,0.012231]
[1743700972056,0.012231,81756.0,81751.0,0.00446115]
[1743700972363,0.256874,81752.0,81751.0,0.00446115]
[1743700973738,0.596874,81752.0,81751.0,0.00446115]
[1743700974554,0.256874,81752.0,81751.0,0.00446115]
[1743700974956,1.1002707,81752.0,81751.0,0.00446115]
[1743700975309,0.83923297,81752.0,81751.0,0.00446115]
[1743700975684,0.71977697,81752.0,81751.0,0.00446115]
[1743700975889,0.596874,81752.0,81751.0,0.00446115]
[1743700976937,0.60596003,81752.0,81751.0,0.00446115]
[1743700978608,0.00908603,81752.0,81751.0,0.00446115]
[1743700978827,0.34908603,81752.0,81751.0,0.00446115]
[1743700979027,0.59372803,81752.0,81751.0,0.00446115]
[1743700979227,0.59372803,81752.0,81751.0,0.01683294]
[1743700979710,0.34908603,81752.0,81751.0,0.27370994]
[1743700979900,0.00908603,81752.0,81751.0,0.27370994]
[1743700980488,0.00908603,81752.0,81751.0,0.01683294]
[1743700980690,0.25372803,81752.0,81751.0,0.01683294]
[1743700980888,0.244642,81752.0,81751.0,0.01683294]
[1743700981123,0.244637,81754.0,81751.0,0.26147794]
[1743700981316,0.244641,81753.0,81751.0,0.01683294]
[1743700981518,0.244642,81752.0,81751.0,0.01683294]
[1743700981805,0.256874,81752.0,81751.0,0.01683294]
[1743700982007,0.256874,81752.0,81751.0,0.00446115]
[1743700982346,0.244642,81752.0,81751.0,0.01698331]
[1743700982551,0.25372803,81752.0,81751.0,0.00446115]
[1743700982807,0.26596003,81752.0,81751.0,0.01698331]
[1743700983105,0.26596003,81752.0,81751.0,0.00446115]
[1743700983539,0.72037553,81752.0,81751.0,0.00446115]
[1743700983754,0.60596003,81752.0,81751.0,0.00446115]
[1743700985544,0.34908603,81752.0,81751.0,0.00446115]
[1743700985772,0.00908603,81752.0,81751.0,0.31113815]
[1743700985899,0.00908603,81752.0,81751.0,0.32369552]
[1743700986715,0.244627,81757.0,81754.0,0.244635]
[1743700986916,0.012231,81754.0,81751.0,0.01701852]
[1743700987121,0.012231,81759.0,81751.0,0.01701852]
[1743700987122,0.012231,81759.0,81755.0,0.01250317]
[1743700987326,0.244642,81752.0,81751.0,0.00446115]
[1743700988193,0.256874,81752.0,81751.0,0.00446115]
[1743700989232,0.26596003,81752.0,81751.0,0.00446115]
[1743700991905,0.64146605,81752.0,81751.0,0.00446115]
[1743700992107,0.60596003,81752.0,81751.0,0.00446115]
[1743700992358,1.2686,81752.0,81751.0,0.00446115]
[1743700993033,1.257711,81752.0,81751.0,0.00446115]
[1743700993234,1.119795,81752.0,81751.0,0.00446115]
[1743700993435,0.74253598,81752.0,81751.0,0.00446115]
[1743700994128,0.64921574,81752.0,81751.0,0.00446115]
[1743700995359,0.62645673,81752.0,81751.0,0.00446115]
[1743700995575,0.60825197,81752.0,81751.0,0.00446115]
[1743700995801,0.61735266,81752.0,81751.0,0.00446115]
[1743700996605,0.60597469,81752.0,81751.0,0.00446115]
[1743700998692,0.72887766,81752.0,81751.0,0.00446115]
[1743700998923,1.28811466,81752.0,81751.0,0.00446115]
[1743700999777,1.41101234,81752.0,81751.0,0.00446115]
[1743701000138,1.28811466,81752.0,81751.0,0.00446115]
[1743701000342,0.72887766,81752.0,81751.0,0.00446115]
[1743701000660,0.84589866,81752.0,81751.0,0.00446115]
[1743701000862,0.83679797,81752.0,81751.0,0.00446115]
[1743701001303,0.596874,81752.0,81751.0,0.00446115]
[1743701001494,0.60824899,81752.0,81751.0,0.00446115]
[1743701002240,0.85406699,81752.0,81751.0,0.00446115]
[1743701002430,0.60824899,81752.0,81751.0,0.00446115]
[1743701002630,0.596874,81752.0,81751.0,0.00446115]
[1743701004334,0.34678946,81752.0,81751.0,0.00446115]
[1743701004632,0.584642,81752.0,81751.0,0.00446115]
[1743701004833,0.244624,81758.0,81751.0,0.00446115]
[1743701005033,0.244639,81753.0,81752.0,0.01265357]
[1743701005264,0.244639,81753.0,81751.0,0.00446115]
[1743701005520,0.584639,81753.0,81752.0,0.01265357]
[1743701005694,0.5937375,81753.0,81752.0,0.01265357]
[1743701006079,0.6059685,81753.0,81752.0,0.01265357]
[1743701006480,0.596874,81752.0,81751.0,0.00446115]
[1743701007089,0.6059725,81752.0,81751.0,0.00446115]
[1743701007673,0.72887547,81752.0,81751.0,0.00446115]
[1743701007875,0.81060168,81752.0,81751.0,0.00446115]
[1743701008433,0.72887547,81752.0,81751.0,0.00446115]
[1743701011336,0.6059725,81752.0,81751.0,0.00446115]
[1743701011537,0.72887547,81752.0,81751.0,0.00446115]
[1743701011739,1.16545047,81752.0,81751.0,0.00446115]
[1743701011946,0.88660847,81752.0,81751.0,0.00446115]
[1743701012146,0.99673347,81752.0,81751.0,0.00446115]
[1743701012604,0.72887547,81752.0,81751.0,0.00446115]
[1743701012891,0.93437047,81752.0,81751.0,0.00446115]
[1743701013032,0.85110247,81752.0,81751.0,0.00446115]
[1743701013548,0.88364847,81752.0,81751.0,0.00446115]
[1743701016236,0.84806447,81752.0,81751.0,0.00446115]
[1743701016417,0.6059725,81752.0,81751.0,0.00446115]
[1743701017568,0.8520955,81752.0,81751.0,0.00446115]
[1743701017803,0.97499318,81752.0,81751.0,0.00446115]
[1743701018043,1.09789615,81752.0,81751.0,0.00446115]
[1743701018493,0.6059725,81752.0,81751.0,0.00446115]
[1743701018649,0.7501915,81752.0,81751.0,0.00446115]
[1743701019046,0.6059725,81752.0,81751.0,0.00446115]
[1743701020763,0.0090985,81752.0,81751.0,0.26133815]
[1743701021187,0.0090985,81752.0,81751.0,0.27399502]
[1743701026078,0.34,81760.0,81759.0,0.244621]
[1743701026489,0.34,81762.0,81760.0,0.244617]
[1743701027070,0.584613,81762.0,81761.0,0.01265687]
[1743701027371,0.34,81762.0,81757.0,0.256855]
[1743701027570,0.244612,81762.0,81761.0,0.01265687]
[1743701027892,0.34,81764.0,81763.0,0.304939]
[1743701028451,0.34,81764.0,81763.0,0.31734706]
[1743701028685,0.34,81771.0,81770.0,0.256817]
[1743701028888,0.34,81771.0,81770.0,0.244588]
[1743701029226,0.34,81771.0,81770.0,0.25699606]
[1743701029783,0.00909545,81771.0,81770.0,0.25699606]
[1743701030459,0.00909545,81771.0,81770.0,0.01240806]
[1743701030648,0.26590945,81771.0,81770.0,0.01240806]
[1743701030808,0.34,81767.0,81765.0,0.244602]
[1743701030995,0.34,81767.0,81766.0,0.2446]
[1743701031198,0.34,81767.0,81766.0,0.25700806]
[1743701031840,0.244597,81767.0,81766.0,0.01240806]
[1743701032041,0.256826,81767.0,81766.0,0.01240806]
[1743701032183,0.2446,81766.0,81763.0,0.244609]
[1743701032387,0.352229,81768.0,81766.0,0.01240806]
[1743701032630,0.34,81768.0,81765.0,0.244603]
[1743701032830,0.34,81773.0,81769.0,0.24459]
[1743701033030,0.58458,81773.0,81770.0,0.244586]
[1743701033207,0.34,81771.0,81769.0,0.25682]
[1743701033623,0.34,81771.0,81767.0,0.244596]
[1743701033786,0.34,81771.0,81768.0,0.244591]
[1743701033787,0.244585,81771.0,81768.0,0.244591]
[1743701033991,0.012228,81774.0,81770.0,0.244588]
[1743701034192,0.34,81771.0,81769.0,0.256819]
[1743701034636,0.34,81771.0,81769.0,0.24459]
[1743701035179,0.34,81777.0,81775.0,0.0462]
[1743701035310,0.58457,81776.0,81775.0,0.0462]
[1743701035741,0.584574,81775.0,81772.0,0.244582]
[1743701036172,0.34,81775.0,81773.0,0.25690168]
[1743701036515,0.34,81775.0,81774.0,0.256804]
[1743701036723,0.1090003,81828.0,81786.0,0.012227]
[1743701036724,0.00898322,81790.0,81786.0,0.012227]
[1743701036954,0.244534,81788.0,81784.0,0.0477]
[1743701037172,0.34,81787.0,81784.0,0.0477]
[1743701037381,0.34,81787.0,81784.0,0.292245]
[1743701037942,0.34,81787.0,81784.0,0.29232408]
[1743701038141,0.34,81787.0,81785.0,0.24454]
[1743701038436,0.34,81788.0,81786.0,0.24454]
[1743701038637,0.244537,81787.0,81784.0,0.30454908]
[1743701038794,0.34,81788.0,81786.0,0.244537]
[1743701039004,0.34,81788.0,81784.0,7.908e-05]
[1743701039268,0.584537,81788.0,81784.0,0.24462408]
[1743701039558,0.34,81788.0,81785.0,0.244541]
[1743701039918,0.34,81788.0,81787.0,0.244537]
[1743701040532,0.34,81790.0,81788.0,0.244533]
[1743701040721,0.34,81790.0,81789.0,0.256757]
[1743701041127,0.34,81788.0,81785.0,0.256769]
[1743701041333,0.34,81788.0,81783.0,0.256774]
[1743701041538,0.34,81788.0,81762.0,0.489222]
[1743701041539,0.244543,81785.0,81779.0,0.012228]
[1743701041731,0.34,81786.0,81782.0,0.244552]
[1743701041934,0.34,81786.0,81785.0,0.25677]
[1743701042141,0.58454,81786.0,81784.0,0.24462208]
[1743701042341,0.25677,81785.0,81784.0,7.908e-05]
[1743701042541,0.244543,81785.0,81784.0,7.908e-05]
[1743701042742,0.34,81786.0,81784.0,0.25656228]
[1743701042957,0.34,81786.0,81785.0,0.25677]
[1743701043163,0.34,81786.0,81785.0,0.01193884]
[1743701043648,0.244526,81791.0,81786.0,0.012227]
[1743701043855,0.34,81790.0,81788.0,0.244531]
[1743701044074,0.34,81790.0,81785.0,0.244543]
[1743701044276,0.24454,81787.0,81784.0,0.24462308]
[1743701044488,0.584535,81788.0,81785.0,0.244543]
[1743701044835,0.244538,81787.0,81784.0,0.24462008]
[1743701045019,0.584535,81788.0,81785.0,0.244542]
[1743701045536,0.584535,81788.0,81784.0,7.908e-05]
[1743701045752,0.25677,81785.0,81784.0,7.908e-05]
[1743701045955,0.59677,81785.0,81784.0,7.908e-05]
[1743701047713,0.60585078,81785.0,81784.0,7.908e-05]
[1743701048131,1.81788775,81785.0,81784.0,7.908e-05]
[1743701048471,1.37331775,81785.0,81784.0,7.908e-05]
[1743701048661,1.36423697,81785.0,81784.0,7.908e-05]
[1743701049070,1.39744365,81785.0,81784.0,7.908e-05]
[1743701049417,1.24064997,81785.0,81784.0,7.908e-05]
[1743701050216,1.14715897,81785.0,81784.0,7.908e-05]
[1743701050459,1.09860697,81785.0,81784.0,7.908e-05]
[1743701051392,1.09860697,81785.0,81784.0,8e-08]
[1743701051515,0.71967297,81785.0,81784.0,8e-08]
[1743701052449,0.72876678,81785.0,81784.0,8e-08]
[1743701053923,0.71967297,81785.0,81784.0,8e-08]
[1743701059586,0.59677,81785.0,81784.0,8e-08]
[1743701061212,0.584543,81785.0,81784.0,8e-08]
[1743701061543,0.59677,81785.0,81784.0,0.01217341]
[1743701061962,0.59677,81785.0,81784.0,8e-08]
[1743701062336,0.59677,81785.0,81784.0,0.01217341]
[1743701062527,0.34,81785.0,81784.0,0.01217341]
[1743701062726,0.34,81785.0,81784.0,0.26894641]
[1743701062931,0.244517,81794.0,81790.0,0.012226]
[1743701063170,0.584521,81793.0,81790.0,0.244523]
[1743701063343,0.34,81793.0,81790.0,0.256749]
[1743701063548,0.34,81793.0,81791.0,0.25657715]
[1743701064148,0.244517,81794.0,81792.0,0.292022]
[1743701064149,0.34,81794.0,81792.0,0.292022]
[1743701064349,0.244498,81801.0,81797.0,0.244504]
[1743701064556,0.14372,81812.0,81792.0,0.0475]
[1743701064557,0.012223,81808.0,81798.0,0.02427815]
[1743701064760,0.52472062,81810.0,81802.0,0.244489]
[1743701064761,0.244483,81806.0,81802.0,0.244489]
[1743701064957,0.256706,81807.0,81803.0,0.25654115]
[1743701065161,0.584486,81804.0,81803.0,0.01205315]
[1743701065498,0.012223,81808.0,81800.0,0.012224]
[1743701065639,0.244484,81805.0,81800.0,0.256722]
[1743701065836,0.34,81804.0,81802.0,0.244492]
[1743701066101,0.34,81804.0,81803.0,0.012224]
[1743701066335,0.012222,81813.0,81807.0,0.2567]
[1743701066605,0.35242257,81814.0,81810.0,0.244466]
[1743701066872,0.35242257,81814.0,81808.0,0.012223]
[1743701066873,0.244467,81811.0,81808.0,0.0463]
[1743701067072,0.001,81804.0,81802.0,0.012224]
[1743701067201,0.244492,81802.0,81796.0,0.290808]
[1743701067424,0.34,81811.0,81803.0,0.012224]
[1743701067622,0.34,81809.0,81808.0,0.244474]
[1743701067827,0.352223,81809.0,81800.0,0.012224]
[1743701068030,0.352223,81809.0,81806.0,0.244479]
[1743701068031,0.34,81809.0,81806.0,0.244479]
[1743701069282,0.341,81809.0,81807.0,0.244477]
[1743701069452,0.34,81802.0,81799.0,0.244501]
[1743701069863,0.34,81802.0,81801.0,0.244495]
[1743701070264,0.34,81802.0,81801.0,0.256719]
[1743701070707,0.244479,81807.0,81803.0,0.256708]
[1743701070826,0.244502,81799.0,81777.0,0.489132]
[1743701071031,0.244502,81799.0,81793.0,0.256743]
[1743701071243,0.244502,81799.0,81792.0,0.155906]
[1743701071244,0.012225,81799.0,81792.0,0.14368]
[1743701071477,0.34,81799.0,81796.0,0.244509]
[1743701071668,0.34,81799.0,81794.0,0.012225]
[1743701071868,0.244507,81797.0,81792.0,0.388201]
[1743701072072,0.244507,81797.0,81792.0,0.244521]
[1743701072269,0.34,81799.0,81795.0,0.244511]
[1743701072492,0.584495,81802.0,81796.0,0.012225]
[1743701072666,0.584495,81802.0,81798.0,0.244504]
[1743701072870,0.34,81800.0,81797.0,0.244505]
[1743701073147,0.352224,81800.0,81794.0,0.012225]
[1743701073328,0.584504,81800.0,81797.0,0.244507]
[1743701073533,0.34,81800.0,81799.0,0.256726]
[1743701073746,0.2567,81807.0,81801.0,0.012224]
[1743701073961,0.584483,81806.0,81802.0,0.244492]
[1743701074179,0.584483,81806.0,81798.0,0.012225]
[1743701074180,0.34,81803.0,81798.0,0.012225]
[1743701074405,0.34,81803.0,81799.0,0.244501]
[1743701074841,0.244493,81802.0,81796.0,0.24451]
[1743701075042,0.34,81803.0,81797.0,0.012225]
[1743701075177,0.584491,81803.0,81796.0,0.012225]
[1743701075522,0.244501,81799.0,81796.0,0.24451]
[1743701075723,0.244501,81799.0,81795.0,0.256738]
[1743701075925,0.584491,81803.0,81796.0,0.256734]
[1743701076127,0.584487,81804.0,81800.0,0.244496]
[1743701076334,0.244493,81802.0,81799.0,0.244499]
[1743701076535,0.244493,81802.0,81798.0,0.244502]
[1743701076739,0.244503,81799.0,81796.0,0.244509]
[1743701076952,0.244504,81800.0,81796.0,0.244509]
[1743701077238,0.244504,81800.0,81797.0,0.244507]
[1743701077419,0.244501,81799.0,81794.0,0.244511]
[1743701077624,0.244505,81798.0,81795.0,0.244513]
[1743701078346,0.352224,81806.0,81795.0,0.012225]
[1743701078525,0.012224,81806.0,81799.0,0.244498]
[1743701078722,0.34,81803.0,81799.0,0.244498]
[1743701078943,0.34,81803.0,81802.0,0.244492]
[1743701079316,0.34,81803.0,81802.0,0.256716]
[1743701079746,0.34,81804.0,81802.0,0.24449]
[1743701079951,0.352224,81804.0,81800.0,0.01454085]
[1743701080103,0.352224,81804.0,81799.0,0.14368]
[1743701080505,0.012224,81803.0,81799.0,0.14368]
[1743701080725,0.244498,81800.0,81799.0,0.14368]
[1743701081152,0.244498,81800.0,81799.0,0.15527385]
[1743701081354,0.24449,81803.0,81800.0,0.244497]
[1743701081528,0.244496,81801.0,81799.0,0.14368]
[1743701081728,0.256747,81793.0,81788.0,0.0489]
[1743701081929,0.244508,81797.0,81794.0,0.244515]
[1743701082704,0.012225,81797.0,81793.0,0.244519]
[1743701082905,0.28024962,81800.0,81794.0,0.012225]
[1743701083109,0.012223,81808.0,81795.0,0.012225]
[1743701083310,0.244486,81804.0,81801.0,0.244492]
[1743701083508,0.34,81803.0,81801.0,0.244495]
[1743701083810,0.256705,81806.0,81801.0,0.256718]
[1743701083984,9.026e-05,81811.0,81810.0,0.244468]
[1743701084184,0.24455626,81811.0,81808.0,0.244469]
[1743701084559,9.026e-05,81811.0,81810.0,0.244468]
[1743701084754,0.244468,81810.0,81807.0,0.244472]
[1743701085025,9.026e-05,81811.0,81808.0,0.244474]
[1743701085315,9.026e-05,81811.0,81809.0,0.244471]
[1743701085640,9.026e-05,81811.0,81810.0,0.244468]
[1743701085971,9.026e-05,81811.0,81810.0,0.256691]
[1743701086169,0.00209026,81811.0,81810.0,0.256691]
[1743701086825,0.00409026,81811.0,81810.0,0.256691]
[1743701087045,0.00209026,81811.0,81810.0,0.256691]
[1743701087246,0.00409026,81811.0,81810.0,0.256691]
[1743701087728,0.00209026,81811.0,81810.0,0.256731]
[1743701088158,0.00409026,81811.0,81810.0,0.256731]
[1743701089675,9.026e-05,81811.0,81810.0,0.256731]
[1743701089877,9.026e-05,81811.0,81810.0,0.27127185]
[1743701093237,9.026e-05,81811.0,81810.0,0.44287482]
[1743701093373,9.026e-05,81811.0,81810.0,0.49117482]
[1743701096338,9.026e-05,81811.0,81810.0,0.50639064]
[1743701096513,9.026e-05,81811.0,81810.0,0.65003064]
[1743701097649,9.026e-05,81811.0,81810.0,0.52712767]
[1743701098649,9.026e-05,81811.0,81810.0,0.37966639]
[1743701098875,9.026e-05,81811.0,81810.0,0.52326639]
[1743701102408,9.026e-05,81811.0,81810.0,0.64616936]
[1743701103650,9.026e-05,81811.0,81810.0,0.16957539]
[1743701104088,9.026e-05,81811.0,81810.0,0.25590254]
[1743701104519,9.026e-05,81811.0,81810.0,0.26812554]
[1743701107320,9.026e-05,81811.0,81810.0,0.01143454]
[1743701107463,9.026e-05,81811.0,81810.0,0.01525619]
[1743701107863,9.026e-05,81811.0,81810.0,0.25972419]
[1743701108091,9.026e-05,81811.0,81810.0,0.27194719]
[1743701108706,0.24455526,81811.0,81810.0,0.01525619]
[1743701109032,9.026e-05,81811.0,81810.0,0.25972419]
[1743701109227,0.24455526,81811.0,81810.0,0.01525619]
[1743701109438,0.25677826,81811.0,81810.0,0.01525619]
[1743701109668,0.64517826,81811.0,81810.0,0.00386165]
[1743701110083,0.64517826,81811.0,81810.0,4e-05]
[1743701110259,2.39100188,81811.0,81810.0,4e-05]
[1743701110486,1.27767688,81811.0,81810.0,4e-05]
[1743701110817,1.01281688,81811.0,81810.0,4e-05]
[1743701111061,1.09167156,81811.0,81810.0,4e-05]
[1743701111562,0.96877388,81811.0,81810.0,4e-05]
[1743701111816,0.70291191,81811.0,81810.0,4e-05]
[1743701112019,0.58455526,81811.0,81810.0,4e-05]
[1743701112243,0.59677826,81811.0,81810.0,4e-05]
[1743701112801,0.34009026,81811.0,81810.0,0.01157723]
[1743701113103,0.58455526,81811.0,81810.0,0.01157723]
[1743701113499,0.58455526,81811.0,81810.0,4e-05]
[1743701113718,0.59677826,81811.0,81810.0,4e-05]
[1743701117461,0.71967594,81811.0,81810.0,4e-05]
[1743701117684,0.59677826,81811.0,81810.0,4e-05]
[1743701118720,0.34009026,81811.0,81810.0,4e-05]
[1743701119074,0.34009026,81811.0,81810.0,0.01157643]
[1743701119474,0.34009026,81811.0,81810.0,0.26826743]
[1743701120470,9.026e-05,81811.0,81810.0,0.45501125]
[1743701121597,9.026e-05,81811.0,81810.0,0.46265498]
[1743701121749,9.026e-05,81811.0,81810.0,0.46647708]
[1743701124369,9.026e-05,81811.0,81810.0,0.27973326]
[1743701124567,0.24455526,81811.0,81810.0,0.02304226]
[1743701124840,0.59677826,81811.0,81810.0,0.02304226]
[1743701125040,0.59677826,81811.0,81810.0,0.01539853]
[1743701125188,0.59677826,81811.0,81810.0,0.0038621]
[1743701125749,2.0756492,81811.0,81810.0,0.0038621]
[1743701126147,2.1219492,81811.0,81810.0,0.0038621]
[1743701126348,1.9235152,81811.0,81810.0,0.0038621]
[1743701126555,1.2693762,81811.0,81810.0,4e-05]
[1743701127931,1.2528782,81811.0,81810.0,4e-05]
[1743701128177,1.2528782,81811.0,81809.0,0.00020124]
[1743701128178,0.596691,81810.0,81809.0,2.4e-07]
[1743701128355,4.26949097,81810.0,81809.0,2.4e-07]
[1743701128534,0.76859397,81810.0,81809.0,2.4e-07]
[1743701129003,0.693138,81795.0,81783.0,0.00764373]
[1743701129128,1.58755797,81795.0,81783.0,0.00764373]
[1743701129529,1.71045565,81795.0,81783.0,0.00764373]
[1743701129786,1.71045565,81795.0,81772.0,0.0038221]
[1743701130188,1.19418997,81795.0,81772.0,0.0038221]
[1743701130388,0.693138,81795.0,81779.0,0.256789]
[1743701130650,0.596738,81795.0,81784.0,0.012227]
[1743701130852,0.596738,81795.0,81779.0,0.256787]
[1743701131070,0.596738,81795.0,81780.0,0.244558]
[1743701131297,0.596738,81795.0,81776.0,0.012228]
[1743701131523,0.596738,81795.0,81781.0,0.244555]
[1743701131904,0.596738,81795.0,81777.0,0.012228]
[1743701131905,0.596738,81795.0,81778.0,0.244558]
[1743701132227,0.596738,81795.0,81779.0,0.244561]
[1743701132986,0.596738,81795.0,81778.0,0.244563]
[1743701133179,0.596738,81795.0,81776.0,0.244567]
[1743701134254,0.596738,81795.0,81777.0,0.256792]
[1743701134555,0.596738,81795.0,81778.0,0.244561]
[1743701134954,1.01893,81795.0,81775.0,0.256792]
[1743701135261,0.756147,81795.0,81776.0,0.244568]
[1743701136069,0.83797469,81795.0,81777.0,0.244566]
[1743701136411,0.83797469,81795.0,81776.0,0.244569]
[1743701136412,0.83797469,81795.0,81775.0,0.012228]
[1743701136627,0.596738,81795.0,81784.0,0.012227]
[1743701137028,0.012224,81802.0,81797.0,0.012225]
[1743701137256,0.34,81798.0,81795.0,0.244513]
[1743701137454,0.34,81798.0,81794.0,0.012265]
[1743701137455,0.34,81798.0,81796.0,0.25646434]
[1743701137664,0.584507,81797.0,81796.0,0.01195434]
[1743701137899,0.34,81796.0,81794.0,4e-05]
[1743701138180,0.012224,81801.0,81794.0,4e-05]
[1743701138181,0.012223,81807.0,81801.0,0.244495]
[1743701138402,0.244501,81799.0,81794.0,0.012265]
[1743701138603,0.352224,81806.0,81802.0,0.01195434]
[1743701138806,0.34,81804.0,81801.0,0.244493]
[1743701138977,0.34,81804.0,81803.0,0.01186599]
[1743701139213,0.28024962,81810.0,81807.0,0.244475]
[1743701139567,0.012222,81814.0,81809.0,0.244471]
[1743701139767,0.012222,81814.0,81808.0,0.0118651]
[1743701139768,0.256694,81809.0,81808.0,0.0118651]
[1743701140067,0.34009026,81811.0,81805.0,0.14364]
[1743701140234,0.012223,81810.0,81805.0,0.14364]
[1743701140444,0.24448,81807.0,81805.0,0.14364]
[1743701140641,0.24448,81806.0,81805.0,0.14364]
[1743701140945,0.256703,81807.0,81805.0,0.14364]
[1743701140946,0.244475,81808.0,81805.0,0.14364]
[1743701141171,0.34009026,81811.0,81805.0,0.155864]
[1743701141348,0.34009026,81811.0,81806.0,0.25628103]
[1743701141555,0.34009026,81811.0,81806.0,0.01180303]
[1743701141753,9.026e-05,81811.0,81810.0,0.256691]
[1743701142118,9.026e-05,81811.0,81810.0,0.25621575]
[1743701143150,9.026e-05,81811.0,81810.0,0.26843875]
[1743701143528,9.026e-05,81811.0,81810.0,0.25621575]
[1743701144275,9.026e-05,81811.0,81810.0,0.26843875]
[1743701144682,9.026e-05,81811.0,81810.0,0.25621575]
[1743701145178,0.25677826,81811.0,81810.0,0.01174775]
[1743701145512,0.25677826,81811.0,81805.0,0.14364]
[1743701145513,0.24448,81806.0,81805.0,0.14364]
[1743701145721,0.244478,81807.0,81803.0,0.01454085]
[1743701145900,0.244478,81807.0,81805.0,0.0117141]
[1743701146130,0.25678426,81811.0,81806.0,0.244479]
[1743701146331,0.01231326,81811.0,81806.0,0.2561931]
[1743701146809,0.244474,81808.0,81806.0,0.0117141]
[1743701147035,0.244474,81808.0,81804.0,0.244484]
[1743701147244,0.24448,81807.0,81805.0,0.0117141]
[1743701147441,0.24448,81806.0,81805.0,0.0117141]
[1743701147693,0.244501,81800.0,81795.0,0.00382182]
[1743701147925,0.244501,81800.0,81796.0,0.01159581]
[1743701148120,0.244504,81799.0,81796.0,0.01159581]
[1743701148328,0.244504,81799.0,81795.0,0.01604682]
[1743701148503,0.244498,81801.0,81797.0,0.01159581]